bitfinex-derivatives/quotes_ETHF0:USTF0_20250908
["timestamp","ask_amount","ask_price","bid_price","bid_amount"]
[1757338051439,1.5356,4346.7,4346.6,1.5175]
[1757338052045,1.5356,4346.7,4346.5,0.242]
[1757338052250,0.8877,4346.7,4346.6,0.4232]
[1757338052550,1.5356,4346.7,4346.5,0.242]
[1757338052846,1.7951,4345.5,4345.4,3.873]
[1757338053051,1.7951,4345.5,4345.4,5.019433]
[1757338053052,1.5356,4345.5,4345.4,5.019433]
[1757338053250,1.5356,4345.5,4345.4,3.501933]
[1757338053450,1.7951,4345.5,4344.7,0.6631]
[1757338053748,1.7951,4345.5,4344.8,0.29430171]
[1757338053949,1.7951,4345.5,4344.7,0.6631]
[1757338054146,1.7951,4345.5,4344.8,0.29430062]
[1757338054349,1.7951,4345.5,4344.7,0.6631]
[1757338054548,1.7951,4345.5,4344.8,0.29435328]
[1757338054855,1.7951,4345.5,4344.7,0.6631]
[1757338055153,0.8877,4344.9,4344.8,0.29430971]
[1757338055452,1.5356,4344.9,4344.8,0.29430971]
[1757338055648,1.5356,4344.9,4344.8,0.71750971]
[1757338055853,1.5356,4344.9,4344.8,0.29430971]
[1757338056649,1.5356,4344.9,4344.8,1.36040971]
[1757338056856,1.5356,4344.9,4344.8,0.29430971]
[1757338057254,1.5356,4344.9,4344.7,0.241]
[1757338057753,0.9278,4344.5,4344.4,36.3688]
[1757338058058,0.9278,4344.5,4344.4,37.54914274]
[1757338058256,0.6763,4344.5,4344.4,34.34134274]
[1757338058852,0.6763,4344.5,4344.4,0.29454274]
[1757338059059,1.5482,4344.5,4344.4,2.04314274]
[1757338060057,1.1284,4344.9,4344.8,1.5076]
[1757338060258,1.5482,4344.9,4344.8,1.5076]
[1757338060458,0.4521,4344.9,4344.8,1.7486]
[1757338060650,0.4521,4344.9,4344.8,2.04321881]
[1757338061051,1.1284,4344.9,4344.8,1.7486]
[1757338061255,1.5482,4344.9,4344.8,2.04328964]
[1757338062358,0.2595,4345.5,4345.4,0.8628]
[1757338062359,1.1284,4345.5,4345.4,0.8628]
[1757338062661,1.1284,4345.5,4345.0,3.4773]
[1757338062662,0.6763,4345.4,4345.0,3.4773]
[1757338062953,1.5482,4345.1,4345.0,0.4213]
[1757338063154,1.5482,4345.1,4345.0,0.6623]
[1757338063559,1.5482,4345.1,4345.0,1.3071]
[1757338063954,1.5482,4345.1,4345.0,1.7486]
[1757338064259,1.5482,4345.1,4345.0,0.4213]
[1757338064454,1.5482,4345.1,4345.0,1.0661]
[1757338064661,1.5482,4345.1,4345.0,2.07179548]
[1757338064851,0.6763,4345.5,4345.0,1.42699548]
[1757338065050,1.1284,4345.5,4345.4,0.8628]
[1757338065254,1.1284,4345.5,4345.4,1.5076]
[1757338065659,1.5482,4345.5,4345.4,1.5076]
[1757338066061,0.6763,4345.4,4345.3,0.4213]
[1757338066260,1.5482,4345.4,4345.3,1.5076]
[1757338066662,1.6631,4345.4,4345.3,1.5076]
[1757338068060,0.567,4345.4,4345.3,1.5076]
[1757338068258,0.567,4345.4,4345.3,1.80228434]
[1757338068467,1.2433,4345.4,4345.3,1.80228434]
[1757338069666,0.1149,4345.4,4345.3,1.80228434]
[1757338069866,0.1149,4345.4,4345.3,1.80661647]
[1757338070162,0.567,4345.4,4345.3,1.80661647]
[1757338070968,1.2433,4345.4,4345.3,1.80661647]
[1757338071164,1.6631,4345.4,4345.3,1.36511647]
[1757338071365,1.6631,4345.4,4345.3,1.80661647]
[1757338072269,1.6631,4345.4,4345.3,1.80661486]
[1757338073270,1.6631,4345.4,4345.3,1.16181486]
[1757338073471,1.6631,4345.4,4344.6,0.8858]
[1757338073671,1.5482,4344.8,4344.7,0.29913748]
[1757338074467,0.4521,4344.8,4344.7,1.80673748]
[1757338075275,1.5482,4344.8,4344.7,1.80673748]
[1757338076180,0.4521,4344.8,4344.7,1.80673748]
[1757338076473,1.1284,4345.1,4345.0,0.8628]
[1757338076678,1.1284,4345.1,4345.0,1.80673748]
[1757338076880,1.5482,4345.1,4345.0,1.36523748]
[1757338077176,1.5482,4345.1,4345.0,0.29913748]
[1757338077773,1.5482,4344.7,4344.6,1.1038]
[1757338077972,1.5482,4344.7,4344.6,1.40302777]
[1757338078170,1.5482,4344.7,4344.6,0.29922777]
[1757338080178,1.5482,4344.7,4344.6,3.50702777]
[1757338080375,0.8719,4344.8,4344.7,1.5076]
[1757338080573,1.5482,4344.8,4344.7,1.80682777]
[1757338080770,1.5482,4344.8,4344.7,0.29922777]
[1757338082376,1.5482,4344.8,4344.3,0.8858]
[1757338082579,0.5352954,4344.7,4344.6,1.5076]
[1757338082778,0.2515,4345.0,4344.7,0.6448]
[1757338082779,1.5482,4344.8,4344.7,0.6448]
[1757338082981,1.5482,4344.8,4344.7,1.80747281]
[1757338084075,1.5482,4344.8,4344.7,0.72117281]
[1757338084290,1.5482,4344.8,4344.7,0.29987281]
[1757338085083,2.08200155,4344.8,4344.7,0.29987281]
[1757338085286,0.8719,4344.4,4344.3,0.241]
[1757338085484,1.54,4344.4,4344.3,0.54094943]
[1757338085685,1.54,4344.4,4344.3,0.95624943]
[1757338085984,1.5099,4344.4,4344.3,2.01554943]
[1757338086782,1.5099,4344.4,4344.3,0.54094943]
[1757338087081,1.5099,4344.4,4343.0,33.4275]
[1757338087082,0.8418,4343.3,4343.2,0.6536]
[1757338087283,4.7177,4343.3,4342.7,0.6536]
[1757338087484,1.5099,4343.3,4342.7,0.6536]
[1757338087987,1.5099,4343.3,4343.2,0.4153]
[1757338088190,0.4097,4343.3,4343.2,1.4746]
[1757338088686,1.5099,4343.3,4343.2,1.4746]
[1757338089087,0.2464,4343.5,4342.9,0.241]
[1757338089284,1.5099,4343.0,4342.9,1.3099]
[1757338090091,1.5099,4343.0,4342.9,1.7156]
[1757338090402,0.8418,4343.0,4342.9,1.7156]
[1757338090784,0.4097,4343.0,4342.9,1.7156]
[1757338090983,1.0778,4343.3,4343.2,0.821]
[1757338091186,1.0778,4343.3,4343.2,1.4746]
[1757338091586,0.4097,4343.3,4343.2,1.4746]
[1757338092589,0.6681,4343.6,4343.2,0.821]
[1757338092785,3.2078,4343.8,4343.5,0.1423]
[1757338092984,1.0778,4343.6,4343.5,1.6169]
[1757338093192,0.4097,4343.6,4343.5,1.6169]
[1757338093578,3.2078,4343.8,4343.5,1.6169]
[1757338093579,3.2078,4343.8,4343.6,0.6536]
[1757338093783,3.2078,4343.8,4343.7,1.4746]
[1757338093784,3.6175,4343.8,4343.7,1.4746]
[1757338094489,4.7177,4343.8,4343.7,1.4746]
[1757338095088,0.7831,4344.1,4343.7,1.4746]
[1757338095289,0.7831,4344.1,4343.8,0.6536]
[1757338095494,1.6249,4344.1,4344.0,0.821]
[1757338095690,1.6249,4344.1,4344.0,1.4746]
[1757338095989,1.5099,4344.1,4344.0,1.4746]
[1757338097192,0.8418,4343.6,4343.5,0.821]
[1757338097388,0.4097,4343.1,4343.0,1.0784]
[1757338097695,0.4097,4343.1,4343.0,1.3194]
[1757338097884,0.6681,4343.4,4343.1,0.6536]
[1757338098089,1.5099,4343.4,4343.3,0.821]
[1757338098392,1.5099,4343.4,4343.3,1.4746]
[1757338099792,0.4097,4343.4,4343.3,1.4746]
[1757338099994,0.6681,4343.9,4343.4,0.6536]
[1757338100188,0.4097,4343.5,4343.4,0.821]
[1757338100388,1.7563,4343.5,4343.4,1.4746]
[1757338100587,1.7563,4343.5,4343.4,0.4153]
[1757338100990,1.7563,4343.5,4343.0,0.4984]
[1757338101190,0.6681,4343.4,4343.1,0.93826216]
[1757338101392,1.5099,4343.2,4343.1,1.0689]
[1757338101594,1.5099,4343.2,4343.1,1.75930981]
[1757338101897,1.5099,4343.2,4343.1,1.4746]
[1757338102302,0.8418,4343.2,4343.1,1.4746]
[1757338102491,0.6681,4343.8,4343.2,0.6536]
[1757338102685,1.5099,4343.8,4343.7,0.4153]
[1757338103193,3.2078,4343.9,4343.8,0.6536]
[1757338103389,3.2078,4343.9,4343.8,1.4746]
[1757338103790,3.6175,4343.9,4343.8,1.4746]
[1757338104693,4.7177,4343.9,4343.8,1.4746]
[1757338104997,1.5099,4343.6,4343.5,1.0689]
[1757338105196,1.5099,4343.6,4343.5,0.28478073]
[1757338105494,1.7563,4343.5,4343.4,0.6563]
[1757338105691,1.7563,4343.5,4343.4,1.3099]
[1757338105891,1.5099,4343.5,4343.4,1.7156]
[1757338106491,1.5099,4343.5,4343.4,1.3099]
[1757338106992,1.5099,4343.5,4343.4,1.0689]
[1757338107193,0.4321,4343.4,4343.3,0.4153]
[1757338107396,1.5099,4343.4,4343.3,1.75961814]
[1757338107698,1.5099,4343.4,4343.3,1.35391814]
[1757338107897,1.5099,4343.4,4343.3,0.70031814]
[1757338108099,1.5099,4343.4,4343.3,1.10601814]
[1757338108292,1.5099,4343.4,4343.3,1.75963818]
[1757338108493,1.5099,4343.4,4343.3,0.28503818]
[1757338110904,4.7177,4343.4,4342.6,3.2078]
[1757338111203,1.5099,4342.8,4342.7,1.35420743]
[1757338111605,1.5099,4342.8,4342.7,1.75990743]
[1757338112104,1.5099,4342.8,4342.7,0.28530743]
[1757338112903,1.5099,4342.8,4342.2,0.241]
[1757338113103,1.5099,4342.8,4342.3,0.2826753]
[1757338113104,1.5099,4342.4,4342.3,0.2826753]
[1757338113299,0.8418,4342.4,4341.9,3.2078]
[1757338113498,0.2464,4342.5,4342.0,0.28269979]
[1757338113499,0.8418,4342.1,4342.0,0.28269979]
[1757338113707,1.5099,4342.1,4342.0,1.35159979]
[1757338114003,1.5099,4342.1,4342.0,0.28269979]
[1757338115499,0.2382,4342.0,4341.3,0.6536]
[1757338115805,1.4821,4341.4,4341.3,1.508]
[1757338116002,1.4821,4341.4,4341.3,0.28282488]
[1757338116506,1.4821,4341.4,4341.3,0.71932488]
[1757338117006,1.4821,4341.4,4341.3,1.37642488]
[1757338117400,1.4821,4341.4,4341.3,1.79432488]
[1757338118005,1.4821,4341.4,4341.3,1.37642488]
[1757338118307,1.4821,4341.4,4341.3,1.0936]
[1757338118899,1.4821,4341.4,4341.3,1.5115]
[1757338119099,0.115,4341.7,4341.3,0.8544]
[1757338119301,0.5437,4341.7,4341.6,1.5115]
[1757338119906,1.5971,4341.7,4341.6,1.5115]
[1757338120107,0.4287,4341.7,4341.6,1.5115]
[1757338121007,1.4821,4341.7,4341.6,1.5115]
[1757338121405,1.4821,4341.7,4341.6,0.6571]
[1757338121907,1.4821,4341.6,4341.5,1.5115]
[1757338122102,0.4287,4341.6,4341.5,1.7552]
[1757338123495,0.7383,4341.9,4341.6,0.6571]
[1757338123694,1.5971,4341.9,4341.8,1.5115]
[1757338124099,0.4287,4342.0,4341.5,0.2437]
[1757338124306,0.4287,4342.0,4341.9,0.8544]
[1757338124512,0.6233,4342.4,4342.0,0.9008]
[1757338124698,1.4821,4342.4,4342.0,3.4515]
[1757338124896,0.6233,4342.1,4341.7,0.241]
[1757338125101,0.4287,4342.1,4342.0,1.0981]
[1757338125696,0.4287,4342.1,4342.0,1.7552]
[1757338125902,0.115,4342.3,4342.0,1.0981]
[1757338126103,0.115,4342.3,4342.1,0.6571]
[1757338126304,0.5437,4342.3,4342.2,1.5115]
[1757338126707,0.115,4342.3,4342.2,1.5115]
[1757338126910,3.8311,4342.8,4342.2,1.5115]
[1757338127207,4.0666,4342.8,4342.7,0.4365]
[1757338127416,4.6899,4342.8,4342.7,1.5115]
[1757338127912,4.6899,4342.8,4342.7,0.4365]
[1757338128109,0.8588,4342.2,4342.1,1.3346]
[1757338128413,0.8588,4341.9,4341.8,1.3346]
[1757338128710,1.4821,4341.9,4341.8,1.61658876]
[1757338128911,0.4287,4342.4,4342.3,0.4365]
[1757338129215,1.4821,4342.4,4342.3,1.5115]
[1757338129610,1.4821,4342.4,4342.3,0.4365]
[1757338129914,1.4821,4342.4,4342.3,1.5115]
[1757338131010,1.4821,4342.4,4342.3,0.4365]
[1757338131215,1.4821,4342.4,4342.3,1.0936]
[1757338131412,1.4821,4342.4,4342.3,1.5115]
[1757338138318,1.4821,4342.4,4342.3,0.4365]
[1757338138620,0.4287,4341.7,4341.6,0.6571]
[1757338138910,0.4287,4341.7,4341.6,1.79399995]
[1757338139412,0.4287,4341.7,4341.6,1.5115]
[1757338139618,0.6233,4342.3,4341.6,4.0622]
[1757338139815,0.4287,4341.8,4341.7,1.5115]
[1757338140611,1.052,4341.8,4341.7,1.5115]
[1757338141011,1.4821,4341.8,4341.7,1.5115]
[1757338142714,1.4821,4341.8,4341.4,0.24]
[1757338142913,1.4821,4341.8,4341.5,0.6571]
[1757338143415,1.4821,4341.8,4341.7,1.0936]
[1757338144022,1.4821,4341.8,4341.7,1.5115]
[1757338157329,0.4287,4341.8,4341.7,1.5115]
[1757338157525,1.4868,4341.8,4341.7,1.0936]
[1757338158031,1.4868,4341.8,4341.7,1.5166]
[1757338158225,1.6018,4341.8,4341.7,1.5166]
[1757338159229,0.9697,4341.8,4341.7,1.5166]
[1757338159528,0.5437,4341.8,4341.7,1.5166]
[1757338159729,0.115,4341.8,4341.7,1.5166]
[1757338160533,1.5945,4341.8,4341.7,1.5166]
[1757338162832,0.5364,4341.8,4341.7,1.5166]
[1757338163425,0.115,4341.8,4341.7,1.5166]
[1757338163627,0.115,4341.8,4341.7,4.95472]
[1757338163822,3.2078,4342.6,4341.7,7.8649]
[1757338164033,3.2078,4342.6,4342.5,1.6817]
[1757338164229,0.6321,4342.8,4342.6,0.5985]
[1757338164429,1.0535,4342.7,4342.6,1.4438]
[1757338164731,1.4795,4342.7,4342.6,1.4438]
[1757338174737,3.8399,4343.1,4342.7,0.5985]
[1757338174937,3.8399,4343.1,4342.5,0.2379]
[1757338174938,4.6873,4343.1,4343.0,1.6817]
[1757338175134,4.6873,4343.1,4343.0,1.4438]
[1757338176836,4.6873,4343.1,4343.0,0.4223]
[1757338177038,0.8239,4342.6,4342.5,1.0392]
[1757338177333,1.412,4342.6,4342.5,1.0392]
[1757338177736,0.5881,4342.4,4342.2,0.00345137]
[1757338178036,1.412,4342.3,4342.2,0.40715137]
[1757338178342,1.412,4342.3,4342.2,0.00345137]
[1757338178541,1.412,4342.3,4342.2,0.40715137]
[1757338179937,1.412,4342.3,4342.2,1.04265137]
[1757338182141,1.412,4342.3,4341.4,3.2078]
[1757338182443,0.2455,4341.0,4340.9,3.2078]
[1757338182640,0.5881,4340.9,4340.8,0.4037]
[1757338182944,1.412,4340.9,4340.8,0.4037]
[1757338183336,1.412,4340.9,4340.8,1.4403]
[1757338183537,0.4076,4340.9,4340.8,1.4403]
[1757338183738,1.2357,4341.4,4341.3,1.4403]
[1757338183938,0.9957,4341.4,4341.3,1.4403]
[1757338184751,0.5881,4341.9,4341.4,0.6355]
[1757338184935,1.412,4341.9,4341.8,0.8048]
[1757338185139,1.412,4341.9,4341.8,1.4403]
[1757338188751,0.8239,4341.9,4341.8,1.4403]
[1757338188950,0.8239,4341.3,4341.2,1.0392]
[1757338189151,1.412,4341.3,4340.6,0.6355]
[1757338189346,1.412,4341.2,4341.1,0.4037]
[1757338189549,3.2078,4341.9,4341.1,1.4403]
[1757338189756,1.412,4341.8,4341.7,1.4403]
[1757338192150,0.5881,4342.3,4341.8,0.6355]
[1757338192357,1.412,4342.3,4342.2,0.4037]
[1757338194256,1.412,4342.3,4342.2,1.4403]
[1757338196255,0.4076,4342.3,4342.2,1.4403]
[1757338196557,0.82735137,4342.7,4342.6,0.8048]
[1757338196752,0.82735137,4342.7,4342.0,0.4946]
[1757338196957,0.82735137,4342.7,4342.1,0.6355]
[1757338197154,0.5881,4342.6,4342.5,0.4037]
[1757338197459,1.412,4342.6,4342.5,1.4403]
[1757338197961,1.412,4342.6,4342.5,1.6949]
[1757338200059,0.8239,4342.6,4342.5,1.6949]
[1757338200257,0.00345137,4342.7,4342.6,1.4403]
[1757338200467,0.5881,4343.9,4342.9,0.6355]
[1757338200664,1.412,4343.9,4343.8,1.0392]
[1757338200956,3.4533,4345.0,4344.0,0.2546]
[1757338201256,1.412,4344.9,4344.8,1.0392]
[1757338201758,1.412,4344.9,4344.8,0.4037]
[1757338201964,0.5881,4345.4,4344.9,0.6355]
[1757338202158,1.412,4345.4,4345.3,1.4403]
[1757338202464,0.4076,4345.3,4345.2,1.4403]
[1757338202660,0.5881,4345.9,4345.3,0.6355]
[1757338202860,1.412,4345.4,4345.3,1.4403]
[1757338203058,1.412,4345.4,4345.3,0.4037]
[1757338203655,0.5881,4344.6,4344.1,0.6355]
[1757338203861,0.9957,4344.2,4344.1,1.4403]
[1757338204057,0.9957,4344.2,4344.1,1.6803]
[1757338204256,0.4076,4344.2,4344.1,1.6803]
[1757338204455,1.412,4344.9,4344.8,0.4037]
[1757338204658,0.4076,4344.9,4344.8,1.4403]
[1757338204857,0.5881,4345.3,4344.9,0.6355]
[1757338205056,0.5881,4345.3,4345.2,1.4403]
[1757338205057,1.412,4345.3,4345.2,1.4403]
[1757338205360,1.412,4345.3,4345.2,0.4037]
[1757338205761,1.412,4345.3,4345.2,1.3997]
[1757338206158,1.412,4345.3,4345.2,0.4037]
[1757338206560,1.412,4345.3,4345.2,1.0083]
[1757338206964,1.412,4345.3,4345.2,0.4037]
[1757338208167,1.412,4345.3,4345.2,1.0083]
[1757338208460,1.412,4345.3,4344.5,0.2546]
[1757338208661,1.3922,4344.4,4344.0,0.6046]
[1757338208866,0.7865,4343.8,4343.7,1.0217]
[1757338209066,0.6057,4344.2,4343.7,1.6263]
[1757338209265,1.0014,4344.2,4344.1,1.3873]
[1757338209459,1.3922,4344.2,4344.1,1.3873]
[1757338210262,0.6057,4344.1,4343.6,33.182]
[1757338210462,1.3922,4343.7,4343.6,33.182]
[1757338210666,1.6336,4344.0,4343.9,1.3873]
[1757338211463,1.3922,4344.0,4343.9,1.3873]
[1757338212867,1.6336,4344.0,4343.9,0.7827]
[1757338213068,1.0279,4344.0,4343.6,33.182]
[1757338213368,1.0279,4344.0,4343.6,33.7866]
[1757338213369,1.3922,4343.7,4343.6,33.7866]
[1757338213671,1.3922,4343.7,4343.6,0.9959]
[1757338214058,0.6057,4343.7,4343.6,1.3873]
[1757338214263,0.3908,4343.8,4343.2,3.2078]
[1757338214464,0.2414,4344.0,4343.4,0.3913]
[1757338214671,1.3922,4343.9,4343.8,0.7827]
[1757338215159,1.3922,4343.9,4343.8,0.3913]
[1757338215364,1.3922,4343.9,4343.3,0.239]
[1757338215559,1.3922,4343.9,4343.2,3.8124]
[1757338215767,1.3922,4343.3,4343.2,0.9959]
[1757338215968,1.3922,4343.3,4343.2,1.2349]
[1757338216163,1.3922,4343.3,4343.2,1.6263]
[1757338216365,0.2414,4344.0,4343.3,0.6046]
[1757338216366,0.6057,4343.9,4343.3,0.6046]
[1757338216567,1.3922,4343.9,4343.8,1.3873]
[1757338216764,1.3922,4343.9,4343.2,3.2078]
[1757338217062,0.6057,4343.8,4343.3,0.8436]
[1757338217265,1.3922,4343.4,4343.3,0.9959]
[1757338217573,1.3922,4342.8,4342.7,3.2078]
[1757338217765,0.7865,4341.9,4341.8,3.2078]
[1757338217965,1.3922,4341.9,4341.8,3.5991]
[1757338218571,1.3922,4341.9,4341.0,0.2476]
[1757338218766,1.3922,4341.9,4341.5,0.239]
[1757338218967,0.6057,4341.8,4341.7,0.3913]
[1757338219264,1.3922,4341.8,4341.7,0.9959]
[1757338219660,0.7865,4341.2,4340.8,33.7746]
[1757338219859,1.3922,4341.1,4341.0,0.3913]
[1757338220064,1.3922,4341.1,4341.0,1.3873]
[1757338220266,1.0014,4341.4,4341.3,1.3873]
[1757338220466,1.3922,4341.4,4341.3,1.3873]
[1757338221578,0.2414,4341.5,4340.8,33.17]
[1757338221874,1.3922,4341.0,4340.9,1.6263]
[1757338222975,1.6336,4341.0,4340.9,0.3913]
[1757338223169,1.6336,4341.0,4340.6,3.4468]
[1757338223374,0.7865,4341.0,4340.9,0.9959]
[1757338223571,0.7865,4341.0,4340.9,1.3873]
[1757338223771,3.4492,4342.0,4341.0,0.2476]
[1757338223972,4.0549,4342.5,4342.0,0.8522]
[1757338224176,4.6,4342.5,4342.4,1.3873]
[1757338224369,3.2078,4342.5,4342.4,1.3873]
[1757338224580,0.6057,4343.4,4343.0,1.3873]
[1757338224769,0.6057,4343.9,4343.4,0.6046]
[1757338225074,3.2078,4344.1,4343.5,0.4866]
[1757338225374,3.2078,4344.1,4343.6,0.6046]
[1757338225574,3.2078,4344.1,4344.0,0.2476]
[1757338225776,3.2078,4344.1,4344.0,0.8522]
[1757338226176,3.2078,4344.6,4344.0,0.8522]
[1757338226978,0.2414,4344.5,4343.5,0.6046]
[1757338227274,0.2414,4343.5,4343.0,0.8436]
[1757338227469,0.6057,4343.4,4343.0,0.6046]
[1757338227669,0.2414,4343.5,4343.0,0.6046]
[1757338227865,0.6057,4343.4,4342.9,0.239]
[1757338228070,3.2078,4343.6,4343.0,0.8522]
[1757338229274,0.2414,4343.5,4342.9,0.239]
[1757338229575,0.2414,4343.5,4342.6,33.179]
[1757338229878,3.2078,4344.3,4343.3,3.2078]
[1757338230071,3.2078,4344.3,4343.6,0.6046]
[1757338230271,0.4304,4344.5,4342.8,4.0514]
[1757338230272,0.2414,4343.5,4342.8,4.0514]
[1757338230579,0.6057,4343.5,4343.0,0.2476]
[1757338230774,0.6057,4344.1,4343.5,0.2476]
[1757338230983,3.2078,4344.3,4343.5,0.2476]
[1757338231276,0.6057,4344.2,4343.6,0.6046]
[1757338231674,3.2078,4344.3,4343.6,0.6046]
[1757338232476,0.6057,4344.6,4343.6,0.6046]
[1757338233176,0.6057,4344.6,4343.5,0.2476]
[1757338233177,0.6057,4344.6,4343.9,0.6046]
[1757338233774,3.2078,4344.9,4343.5,0.2476]
[1757338233972,0.6057,4344.2,4343.4,0.239]
[1757338234174,0.6057,4344.2,4343.5,0.8522]
[1757338234375,0.6057,4344.2,4343.6,0.6046]
[1757338234974,0.8447,4344.7,4344.1,0.6046]
[1757338235175,0.6057,4344.7,4344.1,0.6046]
[1757338237082,0.6057,4344.7,4343.9,0.239]
[1757338237381,0.6057,4344.7,4344.0,0.6069]
[1757338237578,0.6057,4344.7,4344.0,0.8409]
[1757338237776,0.6057,4344.7,4344.1,0.6069]
[1757338237977,3.2078,4344.9,4344.1,0.6069]
[1757338238177,3.2078,4344.9,4344.1,0.23018]
[1757338238481,3.2078,4344.9,4344.2,0.6069]
[1757338239484,0.6092,4344.8,4343.9,0.6069]
[1757338239881,0.6092,4344.8,4344.1,0.6069]
[1757338240184,3.817,4345.4,4344.5,0.234]
[1757338240381,3.817,4345.4,4344.7,0.6069]
[1757338240778,0.6092,4345.8,4344.9,0.6069]
[1757338240983,3.2078,4345.9,4344.8,3.43795]
[1757338240984,3.2078,4345.9,4345.1,0.6069]
[1757338241183,3.2078,4345.9,4345.6,0.6069]
[1757338241981,3.2078,4345.9,4345.7,4.6069]
[1757338242283,3.2078,4345.9,4345.8,0.8459]
[1757338242484,3.2078,4345.9,4345.8,0.6069]
[1757338242681,0.6092,4346.7,4345.8,0.8459]
[1757338242985,3.2078,4346.8,4345.8,0.8459]
[1757338243186,0.6092,4346.7,4346.0,3.2078]
[1757338243388,0.6092,4346.7,4346.1,0.6069]
[1757338244088,3.2078,4346.8,4346.1,0.6069]
[1757338245394,3.2078,4346.8,4346.1,0.83697]
[1757338245589,0.6092,4347.2,4346.6,3.2078]
[1757338245795,0.6092,4347.2,4346.8,0.6069]
[1757338245990,0.8482,4347.7,4346.8,0.6069]
[1757338246190,0.6092,4347.7,4346.8,0.6069]
[1757338246490,0.6092,4347.7,4347.2,0.6069]
[1757338246692,3.4496,4348.0,4347.3,0.239]
[1757338247095,4.0588,4348.0,4347.4,0.6069]
[1757338247287,3.817,4348.0,4347.5,0.234]
[1757338247686,0.6092,4348.4,4347.7,0.6069]
[1757338247892,0.6092,4348.4,4347.8,0.239]
[1757338248290,0.6092,4347.9,4347.4,0.239]
[1757338248694,3.4496,4348.0,4347.4,0.239]
[1757338248895,0.6092,4347.9,4347.2,0.6069]
[1757338249195,0.6092,4347.9,4347.3,0.239]
[1757338251395,3.4496,4348.0,4347.3,0.239]
[1757338251603,4.0588,4348.0,4347.5,0.234]
[1757338251900,0.9911,4347.9,4347.8,0.7638]
[1757338252099,1.3749,4347.9,4347.8,1.3707]
[1757338252600,0.6092,4347.9,4347.4,0.6069]
[1757338253100,3.4496,4348.0,4347.3,0.239]
[1757338253302,0.3819,4347.9,4347.8,4.5785]
[1757338253501,1.3749,4347.9,4347.8,1.3707]
[1757338254102,0.3819,4347.9,4347.8,4.5785]
[1757338254298,0.3819,4347.9,4347.8,1.3707]
[1757338254496,0.7657,4347.9,4347.3,3.8147]
[1757338254697,0.7657,4347.5,4347.4,0.6135]
[1757338254898,1.3749,4347.5,4347.4,1.2204]
[1757338255195,1.3749,4347.5,4347.4,0.6135]
[1757338255801,1.3749,4347.5,4347.4,0.3745]
[1757338256004,1.3749,4347.5,4347.4,0.6135]
[1757338256200,1.3749,4347.5,4347.4,1.2204]
[1757338256400,1.3749,4347.5,4347.4,1.6097]
[1757338256600,0.3819,4347.5,4347.4,1.6097]
[1757338256810,0.9911,4347.9,4347.8,0.7638]
[1757338257104,0.9911,4347.9,4347.8,1.3707]
[1757338258803,0.9911,4347.9,4347.8,1.6097]
[1757338259003,1.3749,4347.9,4347.8,1.6097]
[1757338259497,1.3749,4347.9,4347.3,0.6069]
[1757338259702,0.6092,4347.8,4347.4,0.239]
[1757338259903,1.6167,4347.5,4347.4,0.6135]
[1757338260203,1.3749,4347.5,4347.4,1.6097]
[1757338260412,0.3819,4347.7,4347.6,1.3707]
[1757338260707,0.6092,4348.2,4347.6,1.3707]
[1757338260903,0.6092,4348.2,4347.7,0.6069]
[1757338261208,1.3749,4348.4,4348.3,0.9814]
[1757338261603,1.3749,4348.4,4347.8,0.8459]
[1757338261802,0.7657,4348.4,4348.3,0.3745]
[1757338262007,0.7657,4348.4,4348.3,0.9814]
[1757338262205,0.7657,4348.4,4348.3,1.6097]
[1757338262510,0.3819,4348.4,4348.3,1.6097]
[1757338262811,0.9911,4348.8,4348.7,0.7638]
[1757338263009,0.9911,4348.8,4348.7,1.3707]
[1757338263404,0.17,4348.9,4348.7,0.7638]
[1757338263706,1.3749,4349.9,4349.8,0.3745]
[1757338263907,0.239,4350.2,4349.5,0.8459]
[1757338264206,1.3749,4349.6,4349.5,0.6135]
[1757338264406,1.3749,4348.9,4348.8,4.5785]
[1757338264607,0.7657,4348.9,4348.8,4.5785]
[1757338264902,0.2418,4348.5,4348.3,3.2078]
[1757338265104,0.6092,4348.3,4347.4,0.6069]
[1757338265304,0.2418,4348.0,4347.1,3.2078]
[1757338265509,0.5991,4347.4,4347.1,3.4468]
[1757338266005,0.2316,4347.5,4347.1,3.4468]
[1757338266510,0.5991,4347.4,4347.1,3.4468]
[1757338266807,0.5991,4347.9,4347.2,0.5557]
[1757338267608,3.2078,4347.8,4347.2,0.5557]
[1757338268006,3.2078,4348.3,4347.2,0.5557]
[1757338268204,3.2078,4348.3,4347.7,0.5557]
[1757338268406,3.2078,4348.3,4348.0,0.2197]
[1757338268706,3.2078,4348.8,4348.1,3.2078]
[1757338268904,3.2078,4348.8,4348.2,0.7947]
[1757338269604,0.5991,4348.7,4348.1,3.2078]
[1757338269912,0.2316,4348.5,4348.1,0.239]
[1757338270113,0.5991,4348.4,4348.1,0.239]
[1757338270810,3.2078,4348.3,4347.3,3.2078]
[1757338271007,0.5991,4348.2,4347.4,0.239]
[1757338271305,0.2316,4347.5,4346.8,3.2078]
[1757338271511,0.2316,4347.5,4346.9,0.239]
[1757338271808,0.5991,4347.4,4346.9,0.239]
[1757338271999,0.5991,4347.4,4346.9,0.7947]
[1757338272404,0.2316,4347.5,4346.9,0.239]
[1757338272605,0.5991,4347.9,4347.3,3.2078]